[Event "Titled Tuesday Blitz November 08 Late 2022"]
[White "Chigaev, Maksim"]
[Black "Taboas Rodriguez, Daniel"]
[WhiteFideId "4108116"]
[BlackFideId "2208466"]
[WhiteElo "2541"]
[BlackElo "2329"]
[Result "1/2-1/2"]
[Round "03"]
[TimeControl "180+1"]
[Date "2022.11.08"]
[WhiteClock "0:00:06"]
[BlackClock "0:00:07"]

1. Nf3 {[%clk 0:03:00]}  Nf6 {[%clk 0:03:00]} 2. c4 {[%clk 0:02:59]}  b6 {[%clk 0:03:00]} 3. g3 {[%clk 0:02:59]}  Bb7 {[%clk 0:03:00]} 4. Bg2 {[%clk 0:02:59]}  g6 {[%clk 0:03:00]} 5. O-O {[%clk 0:03:00]}  Bg7 {[%clk 0:03:01]} 6. d4 {[%clk 0:03:00]}  O-O {[%clk 0:03:01]} 7. Qc2 {[%clk 0:03:01]}  c5 {[%clk 0:03:00]} 8. d5 {[%clk 0:03:00]}  b5 {[%clk 0:03:00]} 9. Nc3 {[%clk 0:02:52]}  b4 {[%clk 0:02:48]} 10. Na4 {[%clk 0:02:39]}  d6 {[%clk 0:02:47]} 11. Rb1 {[%clk 0:02:38]}  a5 {[%clk 0:02:47]} 12. e4 {[%clk 0:02:38]}  Nbd7 {[%clk 0:02:46]} 13. h3 {[%clk 0:02:27]}  Nb6 {[%clk 0:02:43]} 14. Nxb6 {[%clk 0:02:25]}  Qxb6 {[%clk 0:02:44]} 15. e5 {[%clk 0:02:24]}  Nd7 {[%clk 0:02:42]} 16. exd6 {[%clk 0:02:14]}  exd6 {[%clk 0:02:43]} 17. Bf4 {[%clk 0:02:12]}  Rfe8 {[%clk 0:02:37]} 18. Rfe1 {[%clk 0:02:10]}  Ba6 {[%clk 0:02:31]} 19. b3 {[%clk 0:01:59]}  Qc7 {[%clk 0:02:24]} 20. Re2 {[%clk 0:01:33]}  Rxe2 {[%clk 0:02:19]} 21. Qxe2 {[%clk 0:01:34]}  Nf6 {[%clk 0:02:19]} 22. Re1 {[%clk 0:01:34]}  Bf8 {[%clk 0:02:08]} 23. Qb2 {[%clk 0:01:26]}  Bg7 {[%clk 0:02:04]} 24. Qd2 {[%clk 0:01:23]}  Re8 {[%clk 0:01:59]} 25. g4 {[%clk 0:01:16]}  Bf8 {[%clk 0:01:35]} 26. Rxe8 {[%clk 0:01:04]}  Nxe8 {[%clk 0:01:36]} 27. Qe3 {[%clk 0:01:05]}  Qd8 {[%clk 0:01:34]} 28. Bg5 {[%clk 0:01:01]}  f6 {[%clk 0:01:29]} 29. Bf4 {[%clk 0:00:55]}  Bc8 {[%clk 0:01:29]} 30. Nd2 {[%clk 0:00:49]}  Qe7 {[%clk 0:01:25]} 31. Ne4 {[%clk 0:00:48]}  Kf7 {[%clk 0:01:18]} 32. Qg3 {[%clk 0:00:36]}  Bd7 {[%clk 0:01:12]} 33. h4 {[%clk 0:00:33]}  a4 {[%clk 0:01:11]} 34. Kf1 {[%clk 0:00:29]}  a3 {[%clk 0:01:11]} 35. h5 {[%clk 0:00:16]}  Bc8 {[%clk 0:00:56]} 36. hxg6+ {[%clk 0:00:11]}  hxg6 {[%clk 0:00:56]} 37. Qf3 {[%clk 0:00:08]}  Kg7 {[%clk 0:00:50]} 38. Qe2 {[%clk 0:00:06]}  f5 {[%clk 0:00:41]} 39. gxf5 {[%clk 0:00:06]}  Bxf5 {[%clk 0:00:42]} 40. Bf3 {[%clk 0:00:06]}  Bxe4 {[%clk 0:00:34]} 41. Qxe4 {[%clk 0:00:06]}  Qxe4 {[%clk 0:00:34]} 42. Bxe4 {[%clk 0:00:07]}  Be7 {[%clk 0:00:29]} 43. Ke2 {[%clk 0:00:07]}  Bf6 {[%clk 0:00:29]} 44. Bg2 {[%clk 0:00:06]}  Be5 {[%clk 0:00:28]} 45. Bg5 {[%clk 0:00:07]}  Bf6 {[%clk 0:00:27]} 46. Be3 {[%clk 0:00:07]}  Be5 {[%clk 0:00:15]} 47. f4 {[%clk 0:00:08]}  Bf6 {[%clk 0:00:15]} 48. Kf3 {[%clk 0:00:09]}  Bc3 {[%clk 0:00:15]} 49. Bh3 {[%clk 0:00:08]}  Nf6 {[%clk 0:00:14]} 50. Be6 {[%clk 0:00:09]}  Nh5 {[%clk 0:00:13]} 51. Bc1 {[%clk 0:00:07]}  Kf6 {[%clk 0:00:13]} 52. Be3 {[%clk 0:00:08]}  Ng7 {[%clk 0:00:13]} 53. Ke4 {[%clk 0:00:04]}  Nxe6 {[%clk 0:00:13]} 54. dxe6 {[%clk 0:00:04]}  Kxe6 {[%clk 0:00:14]} 55. Bf2 {[%clk 0:00:04]}  Bb2 {[%clk 0:00:14]} 56. Bh4 {[%clk 0:00:04]}  Bg7 {[%clk 0:00:14]} 57. Bd8 {[%clk 0:00:04]}  Bh6 {[%clk 0:00:14]} 58. Bh4 {[%clk 0:00:04]}  Bg7 {[%clk 0:00:12]} 59. Bf2 {[%clk 0:00:05]}  Bh8 {[%clk 0:00:12]} 60. Be3 {[%clk 0:00:05]}  Bc3 {[%clk 0:00:13]} 61. Bf2 {[%clk 0:00:06]}  Bb2 {[%clk 0:00:13]} 62. Bh4 {[%clk 0:00:06]}  Bf6 {[%clk 0:00:13]} 63. Bg3 {[%clk 0:00:06]}  Be7 {[%clk 0:00:13]} 64. Bh2 {[%clk 0:00:06]}  Bd8 {[%clk 0:00:10]} 65. Bg3 {[%clk 0:00:06]}  Bf6 {[%clk 0:00:10]} 66. Be1 {[%clk 0:00:07]}  Be7 {[%clk 0:00:10]} 67. Bf2 {[%clk 0:00:07]}  Bd8 {[%clk 0:00:09]} 68. Be3 {[%clk 0:00:07]}  Bh4 {[%clk 0:00:09]} 69. Bg1 {[%clk 0:00:07]}  Be1 {[%clk 0:00:09]} 70. Be3 {[%clk 0:00:06]}  Bc3 {[%clk 0:00:07]} 1/2-1/2


[Site "https://www.chess.com"]

[Event "Titled Tuesday Blitz November 08 Late 2022"]
[White "Chlpik, Martin"]
[Black "Boruchovsky, Avital"]
[WhiteFideId "14923351"]
[BlackFideId "2800055"]
[WhiteElo "2067"]
[BlackElo "2796"]
[Result "0-1"]
[Round "03"]
[TimeControl "180+1"]
[Date "2022.11.09"]
[WhiteClock "0:00:06"]
[BlackClock "0:01:22"]

1. d4 {[%clk 0:03:00]}  Nf6 {[%clk 0:02:58]} 2. Nc3 {[%clk 0:02:47]}  d5 {[%clk 0:02:57]} 3. Bf4 {[%clk 0:02:46]}  e6 {[%clk 0:02:56]} 4. e3 {[%clk 0:02:46]}  a6 {[%clk 0:02:55]} 5. g4 {[%clk 0:02:45]}  c5 {[%clk 0:02:54]} 6. g5 {[%clk 0:02:44]}  Nfd7 {[%clk 0:02:54]} 7. Nf3 {[%clk 0:02:43]}  Nc6 {[%clk 0:02:55]} 8. h4 {[%clk 0:02:40]}  Qb6 {[%clk 0:02:52]} 9. a3 {[%clk 0:02:36]}  Qa7 {[%clk 0:02:36]} 10. Qd2 {[%clk 0:02:31]}  b5 {[%clk 0:02:36]} 11. Bxb5 {[%clk 0:02:00]}  axb5 {[%clk 0:02:26]} 12. Nxb5 {[%clk 0:02:01]}  Qa5 {[%clk 0:02:25]} 13. Nc7+ {[%clk 0:01:55]}  Kd8 {[%clk 0:02:25]} 14. Nxa8 {[%clk 0:01:52]}  Qxa8 {[%clk 0:02:26]} 15. O-O-O {[%clk 0:01:32]}  c4 {[%clk 0:02:25]} 16. e4 {[%clk 0:01:29]}  Bxa3 {[%clk 0:02:22]} 17. c3 {[%clk 0:01:08]}  Na5 {[%clk 0:02:14]} 18. Kb1 {[%clk 0:00:53]}  Nb3 {[%clk 0:02:14]} 19. Qe3 {[%clk 0:00:47]}  Be7 {[%clk 0:01:56]} 20. exd5 {[%clk 0:00:44]}  Qxd5 {[%clk 0:01:57]} 21. Ne5 {[%clk 0:00:38]}  Rf8 {[%clk 0:01:46]} 22. h5 {[%clk 0:00:34]}  f6 {[%clk 0:01:42]} 23. gxf6 {[%clk 0:00:17]}  gxf6 {[%clk 0:01:43]} 24. Nf3 {[%clk 0:00:13]}  Bb7 {[%clk 0:01:30]} 25. Rh3 {[%clk 0:00:11]}  Qf5+ {[%clk 0:01:29]} 26. Ka2 {[%clk 0:00:07]}  Qxh3 {[%clk 0:01:29]} 27. Qxe6 {[%clk 0:00:06]}  Qxe6 {[%clk 0:01:22]} 0-1


[Site "https://www.chess.com"]

[Event "Titled Tuesday Blitz November 08 Late 2022"]
[White "Danielyan, Vahe"]
[Black "Dzierzak, Radoslaw"]
[WhiteFideId "13304828"]
[BlackFideId "1161407"]
[WhiteElo "2602"]
[BlackElo "2422"]
[Result "0-1"]
[Round "03"]
[TimeControl "180+1"]
[Date "2022.11.09"]
[WhiteClock "0:01:19"]
[BlackClock "0:00:26"]

1. c4 {[%clk 0:03:00]}  Nf6 {[%clk 0:02:59]} 2. Nc3 {[%clk 0:02:59]}  e6 {[%clk 0:03:00]} 3. e4 {[%clk 0:02:58]}  e5 {[%clk 0:03:00]} 4. Nf3 {[%clk 0:02:57]}  Nc6 {[%clk 0:03:01]} 5. Be2 {[%clk 0:02:56]}  Bc5 {[%clk 0:02:59]} 6. Nxe5 {[%clk 0:02:56]}  Nxe5 {[%clk 0:02:57]} 7. d4 {[%clk 0:02:57]}  Bb4 {[%clk 0:02:53]} 8. dxe5 {[%clk 0:02:56]}  Nxe4 {[%clk 0:02:53]} 9. Qd4 {[%clk 0:02:56]}  Nxc3 {[%clk 0:02:49]} 10. bxc3 {[%clk 0:02:56]}  Be7 {[%clk 0:02:48]} 11. Qg4 {[%clk 0:02:57]}  g6 {[%clk 0:02:46]} 12. Bh6 {[%clk 0:02:48]}  d6 {[%clk 0:02:39]} 13. Qg3 {[%clk 0:02:46]}  Be6 {[%clk 0:02:20]} 14. Rd1 {[%clk 0:02:42]}  Qd7 {[%clk 0:02:16]} 15. O-O {[%clk 0:02:30]}  O-O-O {[%clk 0:02:10]} 16. c5 {[%clk 0:02:31]}  Qc6 {[%clk 0:02:00]} 17. cxd6 {[%clk 0:02:28]}  cxd6 {[%clk 0:02:00]} 18. Bf3 {[%clk 0:02:28]}  Qc7 {[%clk 0:01:52]} 19. Rb1 {[%clk 0:02:27]}  b6 {[%clk 0:01:48]} 20. a4 {[%clk 0:02:09]}  dxe5 {[%clk 0:01:46]} 21. a5 {[%clk 0:02:06]}  f5 {[%clk 0:01:40]} 22. axb6 {[%clk 0:02:04]}  axb6 {[%clk 0:01:40]} 23. Be2 {[%clk 0:01:59]}  Bc5 {[%clk 0:01:11]} 24. Ba6+ {[%clk 0:01:55]}  Kb8 {[%clk 0:01:11]} 25. Bg7 {[%clk 0:01:55]}  f4 {[%clk 0:01:10]} 26. Qg5 {[%clk 0:01:55]}  Qxg7 {[%clk 0:00:56]} 27. Rfe1 {[%clk 0:01:44]}  Bf5 {[%clk 0:00:49]} 28. Ra1 {[%clk 0:01:40]}  Be7 {[%clk 0:00:43]} 29. Qxe7 {[%clk 0:01:20]}  Qxe7 {[%clk 0:00:44]} 30. Be2 {[%clk 0:01:20]}  Bd3 {[%clk 0:00:34]} 31. Bf3 {[%clk 0:01:20]}  e4 {[%clk 0:00:34]} 32. Rac1 {[%clk 0:01:19]}  Rhe8 {[%clk 0:00:26]} 0-1


[Site "https://www.chess.com"]

[Event "Titled Tuesday Blitz November 08 Late 2022"]
[White "Deac, Bogdan-Daniel"]
[Black "Romanchuk, Viktor"]
[WhiteFideId "1226380"]
[BlackFideId "14109271"]
[WhiteElo "3000"]
[BlackElo "2630"]
[Result "1-0"]
[Round "03"]
[TimeControl "180+1"]
[Date "2022.11.09"]
[WhiteClock "0:00:03"]
[BlackClock "0:00:01"]

1. Nf3 {[%clk 0:02:59]}  d5 {[%clk 0:02:59]} 2. e3 {[%clk 0:02:53]}  c6 {[%clk 0:02:59]} 3. c4 {[%clk 0:02:53]}  Nf6 {[%clk 0:02:58]} 4. Nc3 {[%clk 0:02:53]}  e6 {[%clk 0:02:58]} 5. d4 {[%clk 0:02:53]}  Nbd7 {[%clk 0:02:57]} 6. Be2 {[%clk 0:02:54]}  Bd6 {[%clk 0:02:53]} 7. O-O {[%clk 0:02:53]}  O-O {[%clk 0:02:53]} 8. b3 {[%clk 0:02:54]}  b6 {[%clk 0:02:52]} 9. Bb2 {[%clk 0:02:53]}  Bb7 {[%clk 0:02:52]} 10. Qc2 {[%clk 0:02:53]}  Qe7 {[%clk 0:02:51]} 11. Rad1 {[%clk 0:02:53]}  Rad8 {[%clk 0:02:51]} 12. Rfe1 {[%clk 0:02:52]}  Rfe8 {[%clk 0:02:51]} 13. g3 {[%clk 0:02:52]}  h6 {[%clk 0:02:50]} 14. Bf1 {[%clk 0:02:51]}  Bb4 {[%clk 0:02:46]} 15. Bg2 {[%clk 0:02:49]}  Ne4 {[%clk 0:02:45]} 16. Nxe4 {[%clk 0:02:10]}  Bxe1 {[%clk 0:02:32]} 17. Rxe1 {[%clk 0:02:00]}  dxe4 {[%clk 0:02:31]} 18. Qxe4 {[%clk 0:02:01]}  Nf6 {[%clk 0:02:28]} 19. Qc2 {[%clk 0:02:00]}  c5 {[%clk 0:02:28]} 20. e4 {[%clk 0:02:00]}  cxd4 {[%clk 0:02:15]} 21. Nxd4 {[%clk 0:02:01]}  Qc5 {[%clk 0:01:59]} 22. Nf3 {[%clk 0:01:44]}  Rd7 {[%clk 0:01:35]} 23. Ne5 {[%clk 0:01:35]}  Rdd8 {[%clk 0:01:35]} 24. Bc3 {[%clk 0:01:19]}  Nd7 {[%clk 0:01:24]} 25. Nd3 {[%clk 0:01:14]}  Qc7 {[%clk 0:01:22]} 26. h4 {[%clk 0:01:02]}  Nc5 {[%clk 0:01:21]} 27. Nf4 {[%clk 0:00:59]}  Rd7 {[%clk 0:01:05]} 28. b4 {[%clk 0:00:35]}  Na6 {[%clk 0:01:04]} 29. Bf1 {[%clk 0:00:34]}  Nb8 {[%clk 0:00:54]} 30. Qb2 {[%clk 0:00:30]}  f6 {[%clk 0:00:46]} 31. Qb3 {[%clk 0:00:25]}  Nc6 {[%clk 0:00:43]} 32. c5 {[%clk 0:00:25]}  Nd8 {[%clk 0:00:19]} 33. Bh3 {[%clk 0:00:20]}  Rde7 {[%clk 0:00:19]} 34. e5 {[%clk 0:00:15]}  fxe5 {[%clk 0:00:09]} 35. Bxe5 {[%clk 0:00:13]}  Qc6 {[%clk 0:00:10]} 36. Bg2 {[%clk 0:00:13]}  Qc8 {[%clk 0:00:10]} 37. Bd6 {[%clk 0:00:08]}  Rf7 {[%clk 0:00:10]} 38. Qe3 {[%clk 0:00:05]}  Bxg2 {[%clk 0:00:08]} 39. Kxg2 {[%clk 0:00:06]}  bxc5 {[%clk 0:00:08]} 40. bxc5 {[%clk 0:00:05]}  e5 {[%clk 0:00:08]} 41. Nd3 {[%clk 0:00:04]}  Qc6+ {[%clk 0:00:06]} 42. Qe4 {[%clk 0:00:04]}  Qxe4+ {[%clk 0:00:06]} 43. Rxe4 {[%clk 0:00:05]}  Nb7 {[%clk 0:00:06]} 44. Nxe5 {[%clk 0:00:04]}  Nxd6 {[%clk 0:00:06]} 45. cxd6 {[%clk 0:00:05]}  Rf5 {[%clk 0:00:03]} 46. d7 {[%clk 0:00:03]}  Rd8 {[%clk 0:00:01]} 47. f4 {[%clk 0:00:03]} 1-0


[Site "https://www.chess.com"]

[Event "Titled Tuesday Blitz November 08 Late 2022"]
[White "Dudzinski, Pawel"]
[Black "O`Gorman, Tom"]
[WhiteFideId "1117890"]
[BlackFideId "2508249"]
[WhiteElo "2428"]
[BlackElo "2605"]
[Result "1-0"]
[Round "03"]
[TimeControl "180+1"]
[Date "2022.11.09"]
[WhiteClock "0:00:15"]
[BlackClock "0:00:14"]

1. e4 {[%clk 0:03:00]}  c5 {[%clk 0:02:56]} 2. Nc3 {[%clk 0:03:00]}  d6 {[%clk 0:02:56]} 3. g3 {[%clk 0:03:00]}  g6 {[%clk 0:02:56]} 4. Bg2 {[%clk 0:03:01]}  Bg7 {[%clk 0:02:56]} 5. d3 {[%clk 0:03:02]}  Nc6 {[%clk 0:02:57]} 6. Be3 {[%clk 0:03:02]}  h5 {[%clk 0:02:54]} 7. h3 {[%clk 0:03:02]}  e5 {[%clk 0:02:54]} 8. Qd2 {[%clk 0:03:02]}  Be6 {[%clk 0:02:53]} 9. f4 {[%clk 0:03:02]}  f6 {[%clk 0:02:52]} 10. Nge2 {[%clk 0:02:59]}  Nge7 {[%clk 0:02:52]} 11. O-O {[%clk 0:02:59]}  Qd7 {[%clk 0:02:52]} 12. Kh2 {[%clk 0:02:58]}  O-O-O {[%clk 0:02:49]} 13. Nd5 {[%clk 0:02:57]}  Kb8 {[%clk 0:02:40]} 14. b4 {[%clk 0:02:41]}  Bxd5 {[%clk 0:02:29]} 15. exd5 {[%clk 0:02:41]}  Nxb4 {[%clk 0:02:29]} 16. Rab1 {[%clk 0:02:32]}  Nbxd5 {[%clk 0:02:08]} 17. c4 {[%clk 0:02:11]}  Nxe3 {[%clk 0:02:07]} 18. Qxe3 {[%clk 0:02:08]}  Nc6 {[%clk 0:02:07]} 19. fxe5 {[%clk 0:02:08]}  fxe5 {[%clk 0:02:01]} 20. Qg5 {[%clk 0:02:03]}  Rhg8 {[%clk 0:01:46]} 21. Bd5 {[%clk 0:01:36]}  Rgf8 {[%clk 0:01:39]} 22. Qxg6 {[%clk 0:01:35]}  h4 {[%clk 0:01:38]} 23. Bxc6 {[%clk 0:01:31]}  Qxc6 {[%clk 0:01:30]} 24. Qxg7 {[%clk 0:01:25]}  Rg8 {[%clk 0:01:31]} 25. Qf7 {[%clk 0:01:17]}  hxg3+ {[%clk 0:01:24]} 26. Nxg3 {[%clk 0:01:16]}  b6 {[%clk 0:01:25]} 27. Qd5 {[%clk 0:01:07]}  Qa4 {[%clk 0:00:38]} 28. Rb2 {[%clk 0:01:04]}  Rg7 {[%clk 0:00:36]} 29. Rbf2 {[%clk 0:00:45]}  Qd7 {[%clk 0:00:20]} 30. Rf7 {[%clk 0:00:40]}  Rxf7 {[%clk 0:00:18]} 31. Rxf7 {[%clk 0:00:40]}  Qc8 {[%clk 0:00:19]} 32. Nf5 {[%clk 0:00:34]}  Rh8 {[%clk 0:00:18]} 33. Qxd6+ {[%clk 0:00:32]}  Ka8 {[%clk 0:00:19]} 34. Qd5+ {[%clk 0:00:32]}  Kb8 {[%clk 0:00:19]} 35. Qxe5+ {[%clk 0:00:33]}  Ka8 {[%clk 0:00:19]} 36. Qg3 {[%clk 0:00:20]}  a5 {[%clk 0:00:16]} 37. Nd6 {[%clk 0:00:19]}  Qc6 {[%clk 0:00:15]} 38. Qg2 {[%clk 0:00:16]}  Qxg2+ {[%clk 0:00:13]} 39. Kxg2 {[%clk 0:00:17]}  Rh6 {[%clk 0:00:13]} 40. Nb5 {[%clk 0:00:16]}  Rg6+ {[%clk 0:00:14]} 41. Kh2 {[%clk 0:00:15]} 1-0


[Site "https://www.chess.com"]

[Event "Titled Tuesday Blitz November 08 Late 2022"]
[White "Faizrakhmanov, Ramil"]
[Black "Yi, Richard"]
[WhiteFideId "24103209"]
[BlackFideId "2079518"]
[WhiteElo "2841"]
[BlackElo "2522"]
[Result "1-0"]
[Round "03"]
[TimeControl "180+1"]
[Date "2022.11.09"]
[WhiteClock "0:02:21"]
[BlackClock "0:01:03"]

1. d4 {[%clk 0:02:59]}  d5 {[%clk 0:02:57]} 2. c4 {[%clk 0:02:59]}  c6 {[%clk 0:02:57]} 3. Nc3 {[%clk 0:03:00]}  Nf6 {[%clk 0:02:57]} 4. e3 {[%clk 0:03:00]}  e6 {[%clk 0:02:50]} 5. Nf3 {[%clk 0:03:00]}  Nbd7 {[%clk 0:02:49]} 6. Be2 {[%clk 0:03:01]}  Bd6 {[%clk 0:02:48]} 7. O-O {[%clk 0:03:01]}  O-O {[%clk 0:02:49]} 8. b3 {[%clk 0:03:02]}  Qe7 {[%clk 0:02:43]} 9. Bb2 {[%clk 0:03:02]}  b6 {[%clk 0:02:35]} 10. Qc2 {[%clk 0:03:02]}  Bb7 {[%clk 0:02:32]} 11. Rfe1 {[%clk 0:03:03]}  c5 {[%clk 0:02:19]} 12. cxd5 {[%clk 0:03:02]}  Nxd5 {[%clk 0:02:17]} 13. Nxd5 {[%clk 0:03:02]}  Bxd5 {[%clk 0:02:18]} 14. e4 {[%clk 0:02:59]}  Bb7 {[%clk 0:02:18]} 15. d5 {[%clk 0:02:53]}  e5 {[%clk 0:02:06]} 16. Nd2 {[%clk 0:02:46]}  g6 {[%clk 0:02:04]} 17. a4 {[%clk 0:02:44]}  a6 {[%clk 0:01:58]} 18. Nc4 {[%clk 0:02:43]}  Rae8 {[%clk 0:01:46]} 19. Bg4 {[%clk 0:02:41]}  Nf6 {[%clk 0:01:42]} 20. Bh3 {[%clk 0:02:39]}  Qc7 {[%clk 0:01:37]} 21. f4 {[%clk 0:02:37]}  Nh5 {[%clk 0:01:13]} 22. fxe5 {[%clk 0:02:34]}  Bxe5 {[%clk 0:01:13]} 23. Bxe5 {[%clk 0:02:28]}  Qd8 {[%clk 0:01:03]} 24. Bd6 {[%clk 0:02:21]} 1-0


[Site "https://www.chess.com"]

[Event "Titled Tuesday Blitz November 08 Late 2022"]
[White "Fajdetic, Hrvoje"]
[Black "Karas, Marek"]
[WhiteFideId "14501945"]
[BlackFideId "14928558"]
[WhiteElo "2172"]
[BlackElo "2220"]
[Result "1-0"]
[Round "03"]
[TimeControl "180+1"]
[Date "2022.11.09"]
[WhiteClock "0:00:46"]
[BlackClock "0:00:14"]

1. d4 {[%clk 0:02:57]}  e5 {[%clk 0:02:52]} 2. dxe5 {[%clk 0:02:56]}  Nc6 {[%clk 0:02:52]} 3. Nf3 {[%clk 0:02:54]}  f6 {[%clk 0:02:45]} 4. exf6 {[%clk 0:02:52]}  Nxf6 {[%clk 0:02:46]} 5. Bg5 {[%clk 0:02:48]}  Bc5 {[%clk 0:02:45]} 6. e3 {[%clk 0:02:48]}  d6 {[%clk 0:02:38]} 7. Bc4 {[%clk 0:02:47]}  Bg4 {[%clk 0:02:35]} 8. Nc3 {[%clk 0:02:32]}  Qd7 {[%clk 0:02:30]} 9. Bxf6 {[%clk 0:02:30]}  gxf6 {[%clk 0:02:30]} 10. Nd5 {[%clk 0:02:27]}  Rf8 {[%clk 0:02:20]} 11. h3 {[%clk 0:01:59]}  Bh5 {[%clk 0:02:16]} 12. g4 {[%clk 0:01:56]}  Bg6 {[%clk 0:02:15]} 13. Nh4 {[%clk 0:01:54]}  O-O-O {[%clk 0:02:12]} 14. Nxg6 {[%clk 0:01:53]}  hxg6 {[%clk 0:02:13]} 15. Qe2 {[%clk 0:01:47]}  Ne5 {[%clk 0:02:08]} 16. Bb3 {[%clk 0:01:46]}  c6 {[%clk 0:02:00]} 17. Nf4 {[%clk 0:01:41]}  Rde8 {[%clk 0:01:52]} 18. O-O-O {[%clk 0:01:38]}  g5 {[%clk 0:01:49]} 19. Nd3 {[%clk 0:01:38]}  Bb6 {[%clk 0:01:46]} 20. Nxe5 {[%clk 0:01:36]}  fxe5 {[%clk 0:01:47]} 21. c3 {[%clk 0:01:30]}  Rf6 {[%clk 0:01:43]} 22. Bc2 {[%clk 0:01:30]}  Ref8 {[%clk 0:01:31]} 23. Bf5 {[%clk 0:01:30]}  Rxf5 {[%clk 0:01:32]} 24. gxf5 {[%clk 0:01:30]}  Rxf5 {[%clk 0:01:32]} 25. Qg4 {[%clk 0:01:29]}  Rxf2 {[%clk 0:01:29]} 26. Rxd6 {[%clk 0:01:22]}  Bxe3+ {[%clk 0:01:26]} 27. Kb1 {[%clk 0:01:22]}  Qxg4 {[%clk 0:01:24]} 28. hxg4 {[%clk 0:01:23]}  Kc7 {[%clk 0:01:20]} 29. Re6 {[%clk 0:01:21]}  Bf4 {[%clk 0:01:18]} 30. Rh7+ {[%clk 0:01:21]}  Kb6 {[%clk 0:01:19]} 31. Ree7 {[%clk 0:01:17]}  Kc5 {[%clk 0:01:19]} 32. Rxb7 {[%clk 0:01:14]}  Kd5 {[%clk 0:01:17]} 33. Rxa7 {[%clk 0:01:05]}  Ke4 {[%clk 0:00:48]} 34. a4 {[%clk 0:00:59]}  Kf3 {[%clk 0:00:48]} 35. a5 {[%clk 0:00:59]}  e4 {[%clk 0:00:48]} 36. a6 {[%clk 0:00:56]}  e3 {[%clk 0:00:42]} 37. Rae7 {[%clk 0:00:55]}  e2 {[%clk 0:00:30]} 38. a7 {[%clk 0:00:51]}  Be3 {[%clk 0:00:28]} 39. Rxe3+ {[%clk 0:00:48]}  Kxe3 {[%clk 0:00:26]} 40. Re7+ {[%clk 0:00:48]}  Kd2 {[%clk 0:00:14]} 41. a8=Q {[%clk 0:00:46]} 1-0


[Site "https://www.chess.com"]

[Event "Titled Tuesday Blitz November 08 Late 2022"]
[White "Fernandez Guillen, Ernesto J."]
[Black "Kleiman, Jake"]
[WhiteFideId "3512428"]
[BlackFideId "2020041"]
[WhiteElo "2785"]
[BlackElo "2513"]
[Result "1-0"]
[Round "03"]
[TimeControl "180+1"]
[Date "2022.11.09"]
[WhiteClock "0:00:23"]
[BlackClock "0:00:11"]

1. e4 {[%clk 0:03:00]}  e5 {[%clk 0:02:58]} 2. Nf3 {[%clk 0:03:00]}  Nc6 {[%clk 0:02:59]} 3. d4 {[%clk 0:03:00]}  exd4 {[%clk 0:02:59]} 4. Bc4 {[%clk 0:03:01]}  Nf6 {[%clk 0:02:58]} 5. O-O {[%clk 0:03:01]}  d6 {[%clk 0:02:58]} 6. Nxd4 {[%clk 0:03:01]}  Be7 {[%clk 0:02:59]} 7. Nxc6 {[%clk 0:03:02]}  bxc6 {[%clk 0:02:59]} 8. Nc3 {[%clk 0:03:03]}  O-O {[%clk 0:02:59]} 9. h3 {[%clk 0:03:03]}  Nd7 {[%clk 0:02:59]} 10. f4 {[%clk 0:03:01]}  Bf6 {[%clk 0:03:00]} 11. Bd2 {[%clk 0:03:01]}  Re8 {[%clk 0:02:59]} 12. Qf3 {[%clk 0:02:59]}  Rb8 {[%clk 0:02:59]} 13. b3 {[%clk 0:02:57]}  Nc5 {[%clk 0:02:52]} 14. Rae1 {[%clk 0:02:55]}  Rb6 {[%clk 0:02:27]} 15. Kh1 {[%clk 0:02:33]}  Ba6 {[%clk 0:02:21]} 16. Bxa6 {[%clk 0:02:29]}  Rxa6 {[%clk 0:02:22]} 17. a4 {[%clk 0:02:30]}  Rb6 {[%clk 0:02:18]} 18. Nd1 {[%clk 0:02:00]}  Bh4 {[%clk 0:02:07]} 19. g3 {[%clk 0:01:52]}  Be7 {[%clk 0:02:07]} 20. Nf2 {[%clk 0:01:50]}  Qd7 {[%clk 0:02:00]} 21. Rd1 {[%clk 0:01:45]}  Rbb8 {[%clk 0:01:52]} 22. Be3 {[%clk 0:01:42]}  d5 {[%clk 0:01:34]} 23. exd5 {[%clk 0:01:34]}  cxd5 {[%clk 0:01:35]} 24. Qxd5 {[%clk 0:01:31]}  Qxd5+ {[%clk 0:01:16]} 25. Rxd5 {[%clk 0:01:32]}  Na6 {[%clk 0:01:13]} 26. Bxa7 {[%clk 0:01:23]}  Ra8 {[%clk 0:01:13]} 27. Be3 {[%clk 0:01:19]}  Nb4 {[%clk 0:01:05]} 28. Rd2 {[%clk 0:01:19]}  Bf6 {[%clk 0:01:03]} 29. Bc5 {[%clk 0:01:03]}  Na2 {[%clk 0:00:46]} 30. Bd4 {[%clk 0:00:51]}  Be7 {[%clk 0:00:28]} 31. Rfd1 {[%clk 0:00:47]}  Bb4 {[%clk 0:00:26]} 32. Rd3 {[%clk 0:00:40]}  Re2 {[%clk 0:00:24]} 33. c3 {[%clk 0:00:36]}  Bf8 {[%clk 0:00:22]} 34. Kg2 {[%clk 0:00:33]}  c5 {[%clk 0:00:19]} 35. Be3 {[%clk 0:00:33]}  Re8 {[%clk 0:00:19]} 36. Kf3 {[%clk 0:00:32]}  Rb2 {[%clk 0:00:18]} 37. Ra1 {[%clk 0:00:27]}  h5 {[%clk 0:00:16]} 38. Ne4 {[%clk 0:00:27]}  c4 {[%clk 0:00:12]} 39. bxc4 {[%clk 0:00:26]}  f5 {[%clk 0:00:12]} 40. Ng5 {[%clk 0:00:22]}  Rc8 {[%clk 0:00:11]} 41. c5 {[%clk 0:00:22]}  Bxc5 {[%clk 0:00:11]} 42. Bxc5 {[%clk 0:00:23]} 1-0


[Site "https://www.chess.com"]

[Event "Titled Tuesday Blitz November 08 Late 2022"]
[White "Fernandez Siles, Luis"]
[Black "Ribeiro, Matheus Mendes Domingues"]
[WhiteFideId "2209420"]
[BlackFideId "324226923"]
[WhiteElo "2186"]
[BlackElo "2098"]
[Result "0-1"]
[Round "03"]
[TimeControl "180+1"]
[Date "2022.11.09"]
[WhiteClock "0:00:15"]
[BlackClock "0:00:11"]

1. e4 {[%clk 0:03:00]}  c5 {[%clk 0:02:56]} 2. Nf3 {[%clk 0:03:00]}  e6 {[%clk 0:02:54]} 3. c3 {[%clk 0:03:00]}  Nc6 {[%clk 0:02:51]} 4. d4 {[%clk 0:03:00]}  cxd4 {[%clk 0:02:52]} 5. cxd4 {[%clk 0:03:00]}  d5 {[%clk 0:02:52]} 6. e5 {[%clk 0:02:57]}  Nge7 {[%clk 0:02:52]} 7. Bd3 {[%clk 0:02:54]}  Nf5 {[%clk 0:02:51]} 8. Bxf5 {[%clk 0:02:48]}  exf5 {[%clk 0:02:50]} 9. Nc3 {[%clk 0:02:47]}  Be6 {[%clk 0:02:51]} 10. O-O {[%clk 0:02:47]}  Be7 {[%clk 0:02:51]} 11. Ne1 {[%clk 0:02:44]}  O-O {[%clk 0:02:49]} 12. f4 {[%clk 0:02:44]}  Rc8 {[%clk 0:02:49]} 13. Be3 {[%clk 0:02:43]}  Qb6 {[%clk 0:02:48]} 14. Rf2 {[%clk 0:02:42]}  Na5 {[%clk 0:02:46]} 15. Na4 {[%clk 0:02:25]}  Qb5 {[%clk 0:02:43]} 16. b3 {[%clk 0:02:22]}  Rc7 {[%clk 0:02:35]} 17. Rc1 {[%clk 0:02:06]}  Rfc8 {[%clk 0:02:32]} 18. Rfc2 {[%clk 0:02:00]}  Rxc2 {[%clk 0:02:18]} 19. Rxc2 {[%clk 0:02:01]}  Rxc2 {[%clk 0:02:18]} 20. Qxc2 {[%clk 0:02:02]}  Nc6 {[%clk 0:02:18]} 21. Nd3 {[%clk 0:01:47]}  h6 {[%clk 0:02:16]} 22. Nac5 {[%clk 0:01:42]}  b6 {[%clk 0:02:11]} 23. Nxe6 {[%clk 0:01:37]}  fxe6 {[%clk 0:02:08]} 24. h3 {[%clk 0:01:38]}  Kf7 {[%clk 0:01:19]} 25. g4 {[%clk 0:01:28]}  g6 {[%clk 0:01:11]} 26. Qc3 {[%clk 0:01:00]}  Nb4 {[%clk 0:00:49]} 27. Nxb4 {[%clk 0:00:57]}  Bxb4 {[%clk 0:00:40]} 28. Qc7+ {[%clk 0:00:48]}  Be7 {[%clk 0:00:40]} 29. Qxa7 {[%clk 0:00:30]}  Qe2 {[%clk 0:00:36]} 30. Bf2 {[%clk 0:00:30]}  fxg4 {[%clk 0:00:31]} 31. hxg4 {[%clk 0:00:30]}  Qxg4+ {[%clk 0:00:32]} 32. Kf1 {[%clk 0:00:30]}  Qxf4 {[%clk 0:00:20]} 33. Qxb6 {[%clk 0:00:26]}  h5 {[%clk 0:00:20]} 34. Qb8 {[%clk 0:00:16]}  Qc1+ {[%clk 0:00:14]} 35. Kg2 {[%clk 0:00:15]}  Qg5+ {[%clk 0:00:15]} 36. Kf1 {[%clk 0:00:15]}  Qh6 {[%clk 0:00:11]} 0-1


[Site "https://www.chess.com"]